[Event "FIDE Grand Swiss 2023"]
[Site "Villa Marina, Douglas, Isle of Man, Isle Of Man"]
[Date "2023.10.26"]
[Round "2.40"]
[White "Vokhidov, Shamsiddin"]
[Black "Ivanchuk, Vasyl"]
[Result "1/2-1/2"]
[TimeControl "40/90 + 30 + 30s/move"]
[WhiteFideId "14204223"]
[BlackFideId "14100010"]
[WhiteElo "2578"]
[BlackElo "2653"]

1. e4 {[%clk 01:40:57]} {[%emt 00:00:03]} e6 {[%clk 01:40:57]} {[%emt
00:00:03]} 2. d4 {[%clk 01:41:20]} {[%emt 00:00:06]} d5 {[%clk 01:41:22]}
{[%emt 00:00:05]} 3. Nc3 {[%clk 01:41:35]} {[%emt 00:00:16]} Nf6 {[%clk
01:41:49]} {[%emt 00:00:03]} 4. Bg5 {[%clk 01:41:47]} {[%emt 00:00:18]} dxe4
{[%clk 01:42:15]} {[%emt 00:00:04]} 5. Nxe4 {[%clk 01:42:13]} {[%emt 00:00:03]}
Nbd7 {[%clk 01:42:43]} {[%emt 00:00:03]} 6. Nf3 {[%clk 01:41:36]} {[%emt
00:01:07]} h6 {[%clk 01:43:09]} {[%emt 00:00:04]} 7. Nxf6+ {[%clk 01:41:40]}
{[%emt 00:00:26]} Nxf6 {[%clk 01:43:33]} {[%emt 00:00:06]} 8. Bh4 {[%clk
01:42:05]} {[%emt 00:00:05]} c5 {[%clk 01:43:54]} {[%emt 00:00:09]} 9. c3
{[%clk 01:42:30]} {[%emt 00:00:06]} cxd4 {[%clk 01:39:20]} {[%emt 00:05:04]} 10.
Nxd4 {[%clk 01:41:55]} {[%emt 00:01:04]} Be7 {[%clk 01:23:03]} {[%emt
00:16:47]} 11. Bc4 {[%clk 01:37:17]} {[%emt 00:05:07]} O-O {[%clk 01:21:38]}
{[%emt 00:01:55]} 12. Qe2 {[%clk 01:33:07]} {[%emt 00:04:40]} Bd7 {[%clk
01:19:19]} {[%emt 00:02:49]} 13. O-O {[%clk 01:33:22]} {[%emt 00:00:15]} Qb6
{[%clk 01:17:35]} {[%emt 00:02:15]} 14. Rfd1 {[%clk 01:25:22]} {[%emt
00:08:30]} Rad8 {[%clk 01:09:33]} {[%emt 00:08:33]} 15. a4 {[%clk 01:24:57]}
{[%emt 00:00:54]} a5 {[%clk 01:09:50]} {[%emt 00:00:12]} 16. Bg3 {[%clk
01:19:50]} {[%emt 00:05:37]} Rfe8 {[%clk 01:09:42]} {[%emt 00:00:38]} 17. Nb5
{[%clk 01:08:23]} {[%emt 00:11:58]} Bxb5 {[%clk 01:07:51]} {[%emt 00:02:22]} 18.
Bxb5 {[%clk 01:08:34]} {[%emt 00:00:19]} Rxd1+ {[%clk 01:07:49]} {[%emt
00:00:32]} 19. Rxd1 {[%clk 01:08:58]} {[%emt 00:00:05]} Rd8 {[%clk 01:08:16]}
{[%emt 00:00:03]} 20. Rxd8+ {[%clk 01:06:42]} {[%emt 00:02:46]} Qxd8 {[%clk
01:08:45]} {[%emt 00:00:02]} 21. Bf4 {[%clk 01:05:00]} {[%emt 00:02:11]} Nd5
{[%clk 01:07:51]} {[%emt 00:01:24]} 22. Bd2 {[%clk 01:04:37]} {[%emt 00:00:52]}
Bc5 {[%clk 01:06:49]} {[%emt 00:01:33]} 23. g3 {[%clk 01:02:34]} {[%emt
00:02:33]} b6 {[%clk 01:03:07]} {[%emt 00:04:12]} 24. Kg2 {[%clk 00:56:35]}
{[%emt 00:06:29]} Nf6 {[%clk 01:02:06]} {[%emt 00:01:31]} 25. b4 {[%clk
00:50:54]} {[%emt 00:06:11]} Be7 {[%clk 01:02:27]} {[%emt 00:00:09]} 26. Qd3
{[%clk 00:47:24]} {[%emt 00:04:00]} Nd5 {[%clk 00:54:00]} {[%emt 00:08:56]} 27.
Bc4 {[%clk 00:38:17]} {[%emt 00:09:37]} Qa8 {[%clk 00:52:44]} {[%emt 00:01:47]}
28. Bxd5 {[%clk 00:38:09]} {[%emt 00:00:38]} exd5 {[%clk 00:52:57]} {[%emt
00:00:16]} 29. b5 {[%clk 00:35:31]} {[%emt 00:03:09]} Bc5 {[%clk 00:51:02]}
{[%emt 00:02:25]} 30. Qf3 {[%clk 00:34:35]} {[%emt 00:01:26]} Qd8 {[%clk
00:51:19]} {[%emt 00:00:14]} 31. Be3 {[%clk 00:33:15]} {[%emt 00:01:49]} d4
{[%clk 00:47:34]} {[%emt 00:04:15]} 32. cxd4 {[%clk 00:31:13]} {[%emt
00:02:32]} Bxd4 {[%clk 00:47:53]} {[%emt 00:00:10]} 33. Bc1 {[%clk 00:25:44]}
{[%emt 00:06:00]} Qc8 {[%clk 00:41:47]} {[%emt 00:06:35]} 34. Be3 {[%clk
00:22:09]} {[%emt 00:04:06]} Bxe3 {[%clk 00:40:38]} {[%emt 00:01:38]} 35. Qxe3
{[%clk 00:22:34]} {[%emt 00:00:05]} Qd8 {[%clk 00:41:01]} {[%emt 00:00:07]} 36.
Qe4 {[%clk 00:22:04]} {[%emt 00:01:01]} 1/2-1/2

[Event "FIDE Grand Swiss 2023"]
[Site "Villa Marina, Douglas, Isle of Man, Isle Of Man"]
[Date "2023.10.26"]
[Round "2.41"]
[White "Bartel, Mateusz"]
[Black "Lazavik, Denis"]
[Result "1/2-1/2"]
[TimeControl "40/90 + 30 + 30s/move"]
[WhiteFideId "1112635"]
[BlackFideId "13515110"]
[WhiteElo "2651"]
[BlackElo "2560"]

1. e4 {[%clk 01:40:56]} {[%emt 00:00:03]} e5 {[%clk 01:40:43]} {[%emt
00:00:16]} 2. Nf3 {[%clk 01:41:21]} {[%emt 00:00:05]} Nc6 {[%clk 01:40:54]}
{[%emt 00:00:19]} 3. Bb5 {[%clk 01:41:46]} {[%emt 00:00:06]} Nf6 {[%clk
01:40:58]} {[%emt 00:00:25]} 4. d3 {[%clk 01:42:13]} {[%emt 00:00:05]} Bc5
{[%clk 01:40:48]} {[%emt 00:00:39]} 5. Nbd2 {[%clk 01:42:36]} {[%emt 00:00:07]}
d6 {[%clk 01:40:00]} {[%emt 00:01:18]} 6. c3 {[%clk 01:42:58]} {[%emt
00:00:09]} O-O {[%clk 01:39:45]} {[%emt 00:00:43]} 7. O-O {[%clk 01:43:08]}
{[%emt 00:00:20]} Bb6 {[%clk 01:39:34]} {[%emt 00:00:41]} 8. Nc4 {[%clk
01:42:31]} {[%emt 00:01:09]} Ne7 {[%clk 01:39:26]} {[%emt 00:00:37]} 9. Nxb6
{[%clk 01:42:53]} {[%emt 00:00:08]} axb6 {[%clk 01:39:48]} {[%emt 00:00:08]} 10.
Ba4 {[%clk 01:43:03]} {[%emt 00:00:20]} Ng6 {[%clk 01:35:20]} {[%emt 00:04:57]}
11. Bc2 {[%clk 01:43:09]} {[%emt 00:00:25]} Re8 {[%clk 01:30:28]} {[%emt
00:05:21]} 12. h3 {[%clk 01:40:25]} {[%emt 00:03:14]} h6 {[%clk 01:25:50]}
{[%emt 00:05:08]} 13. Re1 {[%clk 01:40:32]} {[%emt 00:00:25]} Be6 {[%clk
01:23:04]} {[%emt 00:03:15]} 14. a3 {[%clk 01:33:08]} {[%emt 00:07:54]} c5
{[%clk 01:16:51]} {[%emt 00:06:42]} 15. d4 {[%clk 01:26:45]} {[%emt 00:06:54]}
exd4 {[%clk 01:16:55]} {[%emt 00:00:26]} 16. cxd4 {[%clk 01:27:10]} {[%emt
00:00:04]} d5 {[%clk 01:17:18]} {[%emt 00:00:07]} 17. e5 {[%clk 01:17:51]}
{[%emt 00:09:50]} Ne4 {[%clk 01:17:16]} {[%emt 00:00:32]} 18. Be3 {[%clk
01:15:36]} {[%emt 00:02:45]} f5 {[%clk 01:12:27]} {[%emt 00:05:18]} 19. Nd2
{[%clk 00:58:59]} {[%emt 00:17:08]} Qh4 {[%clk 00:59:26]} {[%emt 00:13:30]} 20.
f3 {[%clk 00:47:18]} {[%emt 00:12:13]} cxd4 {[%clk 00:52:54]} {[%emt 00:07:01]}
21. Bxd4 {[%clk 00:47:15]} {[%emt 00:00:33]} Nf4 {[%clk 00:52:30]} {[%emt
00:00:54]} 22. fxe4 {[%clk 00:45:27]} {[%emt 00:02:17]} Nxh3+ {[%clk 00:48:32]}
{[%emt 00:04:29]} 23. gxh3 {[%clk 00:45:33]} {[%emt 00:00:24]} Qg3+ {[%clk
00:48:53]} {[%emt 00:00:09]} 24. Kh1 {[%clk 00:45:51]} {[%emt 00:00:13]} Qxh3+
{[%clk 00:49:06]} {[%emt 00:00:16]} 25. Kg1 {[%clk 00:46:16]} {[%emt 00:00:05]}
Qg3+ {[%clk 00:49:22]} {[%emt 00:00:13]} 26. Kh1 {[%clk 00:46:41]} {[%emt
00:00:06]} Qh3+ {[%clk 00:49:40]} {[%emt 00:00:12]} 27. Kg1 {[%clk 00:47:07]}
{[%emt 00:00:05]} Qg3+ {[%clk 00:50:03]} {[%emt 00:00:06]} 28. Kh1 {[%clk
00:47:33]} {[%emt 00:00:04]} Qh3+ {[%clk 00:49:46]} 1/2-1/2

[Event "FIDE Grand Swiss 2023"]
[Site "Villa Marina, Douglas, Isle of Man, Isle Of Man"]
[Date "2023.10.26"]
[Round "2.42"]
[White "Vidit, Santosh Gujrathi"]
[Black "Gupta, Abhijeet"]
[Result "1-0"]
[TimeControl "40/90 + 30 + 30s/move"]
[WhiteFideId "5029465"]
[BlackFideId "5010608"]
[WhiteElo "2716"]
[BlackElo "2609"]

1. Nf3 {[%clk 01:40:30]} {[%emt 00:00:20]} d5 {[%clk 01:39:12]} {[%emt
00:01:58]} 2. d4 {[%clk 01:40:17]} {[%emt 00:00:43]} Nf6 {[%clk 01:39:29]}
{[%emt 00:00:13]} 3. c4 {[%clk 01:40:39]} {[%emt 00:00:07]} c6 {[%clk
01:39:51]} {[%emt 00:00:08]} 4. e3 {[%clk 01:40:50]} {[%emt 00:00:19]} e6
{[%clk 01:39:57]} {[%emt 00:00:25]} 5. Nbd2 {[%clk 01:40:52]} {[%emt 00:00:27]}
Nbd7 {[%clk 01:39:27]} {[%emt 00:01:00]} 6. b3 {[%clk 01:40:29]} {[%emt
00:00:54]} Bd6 {[%clk 01:35:37]} {[%emt 00:04:20]} 7. Bb2 {[%clk 01:40:50]}
{[%emt 00:00:09]} Ne4 {[%clk 01:35:35]} {[%emt 00:00:31]} 8. Be2 {[%clk
01:18:05]} {[%emt 00:23:15]} f5 {[%clk 01:22:04]} {[%emt 00:14:02]} 9. Qc1
{[%clk 01:15:02]} {[%emt 00:03:32]} O-O {[%clk 01:19:46]} {[%emt 00:02:48]} 10.
O-O {[%clk 01:10:36]} {[%emt 00:04:55]} Qf6 {[%clk 01:13:57]} {[%emt 00:06:20]}
11. Ba3 {[%clk 01:10:27]} {[%emt 00:00:39]} Bxa3 {[%clk 01:11:13]} {[%emt
00:03:14]} 12. Qxa3 {[%clk 01:10:55]} {[%emt 00:00:03]} f4 {[%clk 01:09:25]}
{[%emt 00:02:17]} 13. Nxe4 {[%clk 00:36:10]} {[%emt 00:35:15]} dxe4 {[%clk
01:09:27]} {[%emt 00:00:28]} 14. Nd2 {[%clk 00:36:39]} {[%emt 00:00:01]} f3
{[%clk 01:06:45]} {[%emt 00:03:12]} 15. gxf3 {[%clk 00:29:50]} {[%emt
00:07:19]} exf3 {[%clk 01:06:30]} {[%emt 00:00:45]} 16. Bxf3 {[%clk 00:29:56]}
{[%emt 00:00:24]} e5 {[%clk 00:57:44]} {[%emt 00:09:16]} 17. Bg2 {[%clk
00:26:53]} {[%emt 00:03:32]} Qg6 {[%clk 00:53:02]} {[%emt 00:05:13]} 18. Ne4
{[%clk 00:23:39]} {[%emt 00:03:44]} Nf6 {[%clk 00:51:47]} {[%emt 00:01:45]} 19.
Qd6 {[%clk 00:21:47]} {[%emt 00:02:22]} Bh3 {[%clk 00:27:11]} {[%emt 00:25:06]}
20. Ng3 {[%clk 00:22:09]} {[%emt 00:00:09]} Bxg2 {[%clk 00:25:06]} {[%emt
00:02:34]} 21. Kxg2 {[%clk 00:16:50]} {[%emt 00:05:49]} exd4 {[%clk 00:25:26]}
{[%emt 00:00:10]} 22. exd4 {[%clk 00:16:03]} {[%emt 00:01:17]} Kh8 {[%clk
00:25:09]} {[%emt 00:00:47]} 23. Rae1 {[%clk 00:14:51]} {[%emt 00:01:41]} Rad8
{[%clk 00:23:52]} {[%emt 00:01:48]} 24. Qc5 {[%clk 00:10:53]} {[%emt 00:04:28]}
h5 {[%clk 00:18:33]} {[%emt 00:05:49]} 25. h4 {[%clk 00:04:56]} {[%emt
00:06:27]} Qg4 {[%clk 00:17:37]} {[%emt 00:01:26]} 26. Qg5 {[%clk 00:04:45]}
{[%emt 00:00:41]} Rxd4 {[%emt 00:12:06]} 27. Re7 {[%clk 00:04:01]} Rd7 {[%clk
00:01:20]} {[%emt 00:06:26]} 28. Rfe1 {[%clk 00:03:59]} {[%emt 00:00:30]} Rf7
{[%clk 00:01:12]} {[%emt 00:00:38]} 29. R7e2 {[%clk 00:01:09]} {[%emt
00:03:21]} Rd3 {[%clk 00:01:11]} {[%emt 00:00:30]} 30. Re3 {[%clk 00:00:43]}
{[%emt 00:00:57]} Rxe3 {[%clk 00:00:50]} {[%emt 00:00:51]} 31. Rxe3 {[%clk
00:01:07]} {[%emt 00:00:06]} Rd7 {[%clk 00:01:01]} {[%emt 00:00:19]} 32. Re2
{[%clk 00:00:44]} {[%emt 00:00:53]} Kh7 {[%clk 00:00:46]} {[%emt 00:00:45]} 33.
f3 {[%clk 00:00:53]} {[%emt 00:00:22]} Qxg5 {[%clk 00:00:48]} {[%emt 00:00:27]}
34. hxg5 {[%clk 00:01:21]} {[%emt 00:00:02]} Ng8 {[%clk 00:01:14]} {[%emt
00:00:04]} 35. f4 {[%clk 00:00:51]} {[%emt 00:01:00]} g6 {[%clk 00:01:26]}
{[%emt 00:00:18]} 36. Re6 {[%clk 00:00:42]} {[%emt 00:00:39]} Ne7 {[%clk
00:00:41]} {[%emt 00:01:16]} 37. Ne4 {[%clk 00:00:49]} {[%emt 00:00:23]} Kg7
{[%clk 00:01:02]} {[%emt 00:00:09]} 38. Nd6 {[%clk 00:00:47]} {[%emt 00:00:32]}
b6 {[%clk 00:00:56]} {[%emt 00:00:36]} 39. Rf6 {[%clk 00:00:36]} {[%emt
00:00:40]} c5 {[%clk 00:00:56]} {[%emt 00:00:31]} 40. Kf3 {[%clk 00:00:34]}
{[%emt 00:00:32]} Kg8 {[%clk 00:00:48]} {[%emt 00:00:38]} 41. Nf7 {[%clk
00:41:39]} {[%emt 00:09:24]} Kg7 {[%clk 00:36:00]} {[%emt 00:15:18]} 42. Ne5
{[%clk 00:35:50]} {[%emt 00:06:19]} Rc7 {[%clk 00:36:28]} {[%emt 00:00:03]} 43.
Rf7+ {[%clk 00:30:19]} {[%emt 00:06:01]} Kg8 {[%clk 00:36:54]} {[%emt
00:00:03]} 44. a4 {[%clk 00:24:19]} {[%emt 00:06:30]} Rb7 {[%clk 00:35:12]}
{[%emt 00:02:12]} 45. Kg2 {[%clk 00:23:10]} {[%emt 00:01:40]} Rc7 {[%clk
00:34:06]} {[%emt 00:01:36]} 46. Rf6 {[%clk 00:21:20]} {[%emt 00:02:19]} Kg7
{[%clk 00:34:31]} {[%emt 00:00:05]} 47. Kh3 {[%clk 00:19:56]} {[%emt 00:01:54]}
Rb7 {[%clk 00:33:46]} {[%emt 00:01:15]} 48. Kg2 {[%clk 00:11:17]} {[%emt
00:09:09]} Rc7 {[%clk 00:33:35]} {[%emt 00:00:42]} 49. Rf7+ {[%clk 00:09:16]}
{[%emt 00:02:30]} Kg8 {[%clk 00:33:38]} {[%emt 00:00:27]} 50. Kf3 {[%clk
00:09:05]} {[%emt 00:00:40]} Rb7 {[%clk 00:33:50]} {[%emt 00:00:18]} 51. f5
{[%clk 00:08:13]} {[%emt 00:01:23]} gxf5 {[%clk 00:34:16]} {[%emt 00:00:05]} 52.
g6 {[%clk 00:08:35]} {[%emt 00:00:07]} Rc7 {[%clk 00:34:30]} {[%emt 00:00:15]}
53. Kg3 {[%clk 00:05:24]} {[%emt 00:03:41]} a5 {[%clk 00:33:10]} {[%emt
00:01:51]} 54. Kh3 {[%clk 00:03:17]} {[%emt 00:02:37]} Ra7 {[%clk 00:31:36]}
{[%emt 00:02:04]} 55. Rf6 {[%clk 00:03:16]} {[%emt 00:00:31]} Kg7 {[%clk
00:27:56]} {[%emt 00:04:10]} 56. Rxb6 {[%clk 00:03:30]} {[%emt 00:00:16]} Ng8
{[%clk 00:25:11]} {[%emt 00:03:15]} 57. Kh4 {[%clk 00:03:28]} {[%emt 00:00:32]}
Re7 {[%clk 00:23:25]} {[%emt 00:02:16]} 58. Nd3 {[%clk 00:03:33]} {[%emt
00:00:24]} Kh6 {[%clk 00:22:12]} {[%emt 00:01:45]} 59. g7+ {[%clk 00:00:34]}
{[%emt 00:03:28]} Kxg7 {[%clk 00:22:27]} {[%emt 00:00:16]} 60. Kxh5 {[%clk
00:00:46]} {[%emt 00:00:18]} Re3 {[%clk 00:16:22]} {[%emt 00:06:34]} 61. Nxc5
{[%clk 00:15:11]} {[%emt 00:01:04]} Ne7 {[%clk 00:30:28]} {[%emt 00:01:24]} 62.
Kg5 {[%clk 00:11:28]} {[%emt 00:04:13]} Re1 {[%clk 00:28:59]} {[%emt 00:01:59]}
63. Ra6 {[%clk 00:10:15]} {[%emt 00:01:43]} Rg1+ {[%clk 00:27:50]} {[%emt
00:01:39]} 64. Kf4 {[%clk 00:10:37]} {[%emt 00:00:08]} Rf1+ {[%clk 00:27:44]}
{[%emt 00:00:37]} 65. Ke3 {[%clk 00:06:55]} {[%emt 00:04:12]} Re1+ {[%clk
00:27:17]} {[%emt 00:00:58]} 66. Kf2 {[%clk 00:05:43]} {[%emt 00:01:41]} Rb1
{[%clk 00:26:42]} {[%emt 00:01:04]} 67. Rxa5 {[%clk 00:05:18]} {[%emt
00:00:55]} Nc6 {[%clk 00:26:22]} {[%emt 00:00:51]} 68. Rb5 {[%clk 00:03:56]}
{[%emt 00:01:53]} Nd4 {[%clk 00:24:27]} {[%emt 00:02:25]} 69. Rb7+ {[%clk
00:04:02]} {[%emt 00:00:23]} Kf6 {[%clk 00:23:48]} {[%emt 00:01:09]} 70. Ke3
{[%clk 00:04:25]} {[%emt 00:00:07]} Rd1 {[%clk 00:21:19]} {[%emt 00:02:59]} 71.
a5 {[%clk 00:03:58]} {[%emt 00:00:57]} Kg5 {[%clk 00:21:34]} {[%emt 00:00:15]}
72. Rg7+ {[%clk 00:02:47]} {[%emt 00:01:40]} Kf6 {[%clk 00:22:01]} {[%emt
00:00:04]} 73. Rb7 {[%clk 00:02:25]} {[%emt 00:00:52]} Kg5 {[%clk 00:22:26]}
{[%emt 00:00:05]} 74. a6 {[%clk 00:02:04]} {[%emt 00:00:52]} f4+ {[%clk
00:21:59]} {[%emt 00:00:57]} 75. Ke4 {[%clk 00:02:30]} {[%emt 00:00:04]} Nf5
{[%clk 00:21:45]} {[%emt 00:00:43]} 76. a7 {[%clk 00:01:48]} {[%emt 00:01:13]}
Nd6+ {[%clk 00:22:04]} {[%emt 00:00:11]} 77. Kf3 {[%clk 00:01:11]} {[%emt
00:01:06]} Nxb7 {[%clk 00:21:51]} {[%emt 00:00:43]} 78. a8=Q {[%clk 00:00:46]}
{[%emt 00:00:55]} Nxc5 {[%clk 00:22:13]} {[%emt 00:00:07]} 79. Qg8+ {[%clk
00:01:08]} {[%emt 00:00:08]} Kh5 {[%clk 00:22:28]} {[%emt 00:00:15]} 80. Qh7+
{[%clk 00:01:30]} {[%emt 00:00:07]} 1-0

[Event "FIDE Grand Swiss 2023"]
[Site "Villa Marina, Douglas, Isle of Man, Isle Of Man"]
[Date "2023.10.26"]
[Round "2.43"]
[White "Navara, David"]
[Black "Bachmann, Axel"]
[Result "1-0"]
[TimeControl "40/90 + 30 + 30s/move"]
[WhiteFideId "309095"]
[BlackFideId "3700488"]
[WhiteElo "2689"]
[BlackElo "2604"]

1. d4 {[%clk 01:40:57]} {[%emt 00:00:03]} Nf6 {[%clk 01:40:50]} {[%emt
00:00:10]} 2. c4 {[%clk 01:41:22]} {[%emt 00:00:05]} e6 {[%clk 01:41:16]}
{[%emt 00:00:05]} 3. Nf3 {[%clk 01:41:48]} {[%emt 00:00:04]} Bb4+ {[%clk
01:37:27]} {[%emt 00:04:19]} 4. Nbd2 {[%clk 01:42:04]} {[%emt 00:00:13]} Be7
{[%clk 01:37:27]} {[%emt 00:00:31]} 5. e4 {[%clk 01:32:18]} {[%emt 00:10:16]}
d5 {[%clk 01:37:16]} {[%emt 00:00:41]} 6. e5 {[%clk 01:32:24]} {[%emt
00:00:24]} Nfd7 {[%clk 01:37:40]} {[%emt 00:00:05]} 7. Bd3 {[%clk 01:32:02]}
{[%emt 00:00:53]} c5 {[%clk 01:38:01]} {[%emt 00:00:09]} 8. O-O {[%clk
01:32:07]} {[%emt 00:00:24]} Nc6 {[%clk 01:37:44]} {[%emt 00:00:47]} 9. Qe2
{[%clk 01:19:33]} {[%emt 00:13:05]} cxd4 {[%clk 01:34:37]} {[%emt 00:03:37]} 10.
Nb3 {[%clk 01:15:52]} {[%emt 00:04:11]} O-O {[%clk 01:05:53]} {[%emt 00:29:14]}
11. cxd5 {[%clk 01:09:46]} {[%emt 00:06:36]} exd5 {[%clk 01:05:05]} {[%emt
00:01:18]} 12. Bf4 {[%clk 01:10:07]} {[%emt 00:00:08]} Nb4 {[%clk 01:04:37]}
{[%emt 00:00:59]} 13. Bb1 {[%clk 00:54:48]} {[%emt 00:15:49]} d3 {[%clk
01:02:09]} {[%emt 00:02:57]} 14. Bxd3 {[%clk 00:53:59]} {[%emt 00:01:19]} Nxd3
{[%clk 01:02:33]} {[%emt 00:00:07]} 15. Qxd3 {[%clk 00:54:21]} {[%emt
00:00:08]} Nb8 {[%clk 00:57:20]} {[%emt 00:05:42]} 16. Nfd4 {[%clk 00:52:35]}
{[%emt 00:02:17]} a5 {[%clk 00:54:47]} {[%emt 00:03:03]} 17. Qg3 {[%clk
00:49:06]} {[%emt 00:03:59]} Qb6 {[%clk 00:41:03]} {[%emt 00:14:14]} 18. e6
{[%clk 00:42:05]} {[%emt 00:07:31]} Bxe6 {[%clk 00:40:10]} {[%emt 00:01:22]} 19.
Be5 {[%clk 00:41:13]} {[%emt 00:01:22]} g6 {[%clk 00:40:30]} {[%emt 00:00:10]}
20. Bc7 {[%clk 00:40:20]} {[%emt 00:01:23]} Qb4 {[%clk 00:37:21]} {[%emt
00:03:40]} 21. Rae1 {[%clk 00:36:16]} {[%emt 00:04:34]} Nc6 {[%clk 00:31:43]}
{[%emt 00:06:08]} 22. a3 {[%clk 00:33:38]} {[%emt 00:03:08]} Qa4 {[%clk
00:21:20]} {[%emt 00:10:53]} 23. Nxe6 {[%clk 00:33:20]} {[%emt 00:00:47]} fxe6
{[%clk 00:21:45]} {[%emt 00:00:05]} 24. Rxe6 {[%clk 00:33:14]} {[%emt
00:00:36]} Rf7 {[%clk 00:18:11]} {[%emt 00:04:04]} 25. Bd6 {[%clk 00:30:20]}
{[%emt 00:03:24]} Bf6 {[%clk 00:09:56]} {[%emt 00:08:46]} 26. Qe3 {[%clk
00:22:36]} {[%emt 00:08:14]} Nd4 {[%clk 00:07:58]} {[%emt 00:02:28]} 27. Nxd4
{[%clk 00:21:21]} {[%emt 00:01:44]} Bxd4 {[%clk 00:07:42]} {[%emt 00:00:46]} 28.
Qe2 {[%clk 00:21:01]} {[%emt 00:00:49]} Qd7 {[%clk 00:07:14]} {[%emt 00:00:59]}
29. Bg3 {[%clk 00:20:29]} {[%emt 00:01:02]} Raf8 {[%clk 00:04:45]} {[%emt
00:02:59]} 30. h4 {[%clk 00:19:38]} {[%emt 00:01:22]} Bf6 {[%clk 00:03:36]}
{[%emt 00:01:39]} 31. Re1 {[%clk 00:16:36]} {[%emt 00:03:31]} d4 {[%clk
00:03:53]} {[%emt 00:00:13]} 32. Qd3 {[%clk 00:13:01]} {[%emt 00:04:06]} Bg7
{[%clk 00:03:02]} {[%emt 00:01:20]} 33. Bd6 {[%clk 00:10:30]} {[%emt 00:03:01]}
Rc8 {[%clk 00:03:02]} {[%emt 00:00:31]} 34. Qe4 {[%clk 00:08:44]} {[%emt
00:02:16]} Qb5 {[%clk 00:03:21]} {[%emt 00:00:11]} 35. Re8+ {[%clk 00:06:47]}
{[%emt 00:02:26]} Rxe8 {[%clk 00:02:14]} {[%emt 00:01:38]} 36. Qxe8+ {[%clk
00:07:09]} {[%emt 00:00:07]} Qxe8 {[%clk 00:02:35]} {[%emt 00:00:09]} 37. Rxe8+
{[%clk 00:07:31]} {[%emt 00:00:08]} Bf8 {[%clk 00:03:01]} {[%emt 00:00:04]} 38.
Kf1 {[%clk 00:07:30]} {[%emt 00:00:31]} Rf6 {[%clk 00:01:54]} {[%emt 00:01:37]}
39. Rxf8+ {[%clk 00:07:44]} {[%emt 00:00:16]} Rxf8 {[%clk 00:02:18]} {[%emt
00:00:06]} 40. Bxf8 {[%clk 00:08:09]} {[%emt 00:00:05]} Kxf8 {[%clk 00:02:41]}
{[%emt 00:00:07]} 41. Ke2 {[%clk 00:08:33]} {[%emt 00:00:06]} Ke7 {[%clk
00:02:55]} {[%emt 00:00:16]} 42. Kd3 {[%clk 00:08:59]} {[%emt 00:00:05]} Kf6
{[%clk 00:03:20]} {[%emt 00:00:05]} 43. Kxd4 {[%clk 00:09:19]} {[%emt
00:00:09]} Kf5 {[%clk 00:03:47]} {[%emt 00:00:03]} 44. a4 {[%clk 00:06:13]}
{[%emt 00:03:37]} Kg4 {[%clk 00:04:06]} {[%emt 00:00:11]} 45. Kc5 {[%clk
00:06:28]} {[%emt 00:00:14]} Kxh4 {[%clk 00:04:28]} {[%emt 00:00:08]} 46. Kb6
{[%clk 00:04:48]} {[%emt 00:02:10]} h5 {[%clk 00:04:48]} {[%emt 00:00:10]} 47.
Kxa5 {[%clk 00:04:50]} {[%emt 00:00:29]} g5 {[%clk 00:05:13]} {[%emt 00:00:05]}
48. Kb6 {[%clk 00:05:08]} {[%emt 00:00:11]} g4 {[%clk 00:05:39]} {[%emt
00:00:04]} 49. Kxb7 {[%clk 00:04:53]} {[%emt 00:00:46]} g3 {[%clk 00:06:02]}
{[%emt 00:00:07]} 50. fxg3+ {[%clk 00:05:17]} {[%emt 00:00:06]} 1-0